bitfinex-derivatives/quotes_ETHF0:USTF0_20250110
["timestamp","ask_amount","ask_price","bid_price","bid_amount"]
[1736473747318,0.3097,3229.4,3229.2,0.8919]
[1736473747514,3.2078,3229.9,3229.2,0.8919]
[1736473747515,0.30971,3229.3,3229.2,0.8919]
[1736473747723,3.2078,3229.4,3229.2,0.8919]
[1736473748023,3.5175,3229.4,3229.2,0.8919]
[1736473748426,0.30971,3229.3,3229.2,0.8919]
[1736473748618,0.30971,3229.3,3229.0,0.00184365]
[1736473748826,3.5175,3229.4,3229.0,0.00184365]
[1736473749024,0.3097,3229.4,3229.0,0.00184365]
[1736473752433,3.77609881,3229.6,3229.0,0.00184365]
[1736473752733,0.30971,3229.3,3229.0,0.00184365]
[1736473753233,3.77609881,3229.6,3229.0,0.00184365]
[1736473753433,0.30972,3229.2,3229.0,0.00184365]
[1736473753732,3.77609881,3229.6,3229.0,0.00184365]
[1736473753733,0.30971,3229.3,3229.0,0.00184365]
[1736473754431,3.51751,3229.3,3229.0,0.00184365]
[1736473754836,0.30972,3229.2,3229.0,0.00184365]
[1736473755335,3.2078,3229.3,3229.0,0.00184365]
[1736473755336,3.51751,3229.3,3229.0,0.00184365]
[1736473756441,3.2078,3229.3,3229.0,0.00184365]
[1736473756942,3.2078,3230.1,3229.5,0.30969]
[1736473757238,0.30964,3230.0,3229.2,0.30972]
[1736473757440,3.2078,3230.1,3229.2,0.30972]
[1736473757441,3.2078,3230.1,3229.9,0.30965]
[1736473757641,0.3096,3230.4,3229.5,3.2078]
[1736473757944,1.42,3230.5,3230.2,0.30962]
[1736473758131,3.2078,3230.6,3230.3,0.3096]
[1736473758331,3.2078,3230.6,3229.7,0.77418]
[1736473758332,3.77709881,3231.2,3230.4,44.0078]
[1736473758537,4.08662881,3231.2,3230.8,0.30956]
[1736473758836,4.08662881,3231.2,3230.4,44.0078]
[1736473758837,0.30953,3231.1,3230.5,1.379]
[1736473759034,0.30953,3231.1,3230.5,1.68859]
[1736473759237,3.77709881,3231.2,3230.5,1.379]
[1736473759941,4.08662881,3231.2,3230.6,0.30958]
[1736473760333,3.77709881,3231.2,3230.5,1.379]
[1736473760542,3.77709881,3231.2,3230.7,0.30957]
[1736473760744,2.35709881,3231.2,3230.7,0.30957]
[1736473760938,3.51732,3231.3,3230.5,1.379]
[1736473760939,3.2078,3231.3,3230.5,1.379]
[1736473761141,2.81119881,3231.6,3230.8,3.2078]
[1736473761343,2.81119881,3231.6,3231.2,0.30952]
[1736473761645,2.81119881,3231.6,3231.0,0.30954]
[1736473762546,2.35709881,3231.6,3230.8,3.2078]
[1736473762838,3.2078,3231.8,3230.8,3.2078]
[1736473763045,3.77609881,3232.0,3231.6,0.30948]
[1736473763235,3.77609881,3232.0,3231.2,3.2078]
[1736473763434,0.3095,3231.5,3231.2,3.2078]
[1736473763739,3.2078,3231.9,3231.2,3.2078]
[1736473763940,0.30949,3231.6,3231.2,3.2078]
[1736473764643,0.30951,3231.3,3230.7,3.2078]
[1736473764840,0.30951,3231.4,3230.8,0.30956]
[1736473765046,0.30951,3231.4,3230.7,3.51737]
[1736473765745,3.5173,3231.5,3230.9,0.30955]
[1736473766550,3.2078,3231.5,3230.7,3.2078]
[1736473767446,0.30955,3231.0,3230.7,3.2078]
[1736473767647,3.2078,3231.5,3230.7,3.2078]
[1736473767648,2.35709881,3231.2,3230.7,3.2078]
[1736473767949,0.30956,3230.9,3230.7,3.2078]
[1736473768150,0.30956,3230.9,3230.5,0.9029]
[1736473768151,3.2078,3230.9,3230.5,0.9029]
[1736473768447,0.30957,3230.8,3230.2,3.51741]
[1736473768649,0.30957,3230.8,3230.2,3.97161]
[1736473769448,0.30961,3230.3,3230.2,3.2078]
[1736473769652,0.30963,3230.1,3229.9,0.4705]
[1736473770055,0.30964,3230.0,3229.7,44.0078]
[1736473770347,0.30965,3230.0,3229.4,0.76389]
[1736473770552,3.2078,3230.1,3229.4,0.4542]
[1736473770756,0.30965,3229.9,3229.4,0.4542]
[1736473771254,3.2078,3230.1,3229.4,0.4542]
[1736473771955,0.30967,3229.7,3229.4,0.4542]
[1736473772352,3.2078,3230.1,3229.4,0.4542]
[1736473772551,0.05218503,3230.0,3229.4,0.4542]
[1736473772758,0.30967,3229.7,3229.4,0.4542]
[1736473773357,3.51747,3229.7,3229.4,0.4542]
[1736473773750,3.2078,3229.7,3229.4,0.4542]
[1736473774760,0.30966,3229.8,3229.4,0.4542]
[1736473776256,0.30966,3229.8,3229.3,41.10971]
[1736473776257,3.2078,3230.1,3229.3,40.8]
[1736473776555,0.30973,3229.1,3228.6,1.3428]
[1736473776956,0.30973,3229.1,3228.6,42.1428]
[1736473777856,3.51752,3229.2,3228.6,42.45257]
[1736473778258,3.76509881,3229.1,3228.6,40.8]
[1736473778458,4.07482881,3229.1,3228.6,40.8]
[1736473780763,4.12697362,3229.1,3228.1,0.30982]
[1736473781161,4.12697362,3229.1,3228.2,40.8]
[1736473781361,4.12697362,3229.1,3228.2,41.10981]
[1736473782068,4.12697362,3229.1,3228.2,40.8]
[1736473783760,4.07482881,3229.1,3228.3,0.3098]
[1736473784467,4.12696144,3229.1,3228.2,41.1098]
[1736473784661,4.12696144,3229.1,3228.3,0.3098]
[1736473784871,4.07482881,3229.1,3228.2,41.10981]
[1736473785164,4.12695529,3229.1,3228.3,0.3098]
[1736473785361,4.07482881,3229.1,3228.2,41.1098]
[1736473785561,2.66682881,3229.1,3228.2,40.8]
[1736473785762,3.2078,3229.2,3228.2,40.8]
[1736473785763,3.2078,3229.2,3228.7,0.30976]
[1736473786058,3.2078,3229.2,3228.8,1.3493]
[1736473786263,3.2078,3229.2,3229.1,0.30973]
[1736473786866,3.51747,3229.8,3229.2,0.30971]
[1736473787061,3.2078,3229.8,3229.1,44.0078]
[1736473787261,3.2078,3229.8,3229.7,0.30967]
[1736473787465,3.2078,3229.8,3229.1,44.0078]
[1736473787466,3.2078,3229.8,3229.6,0.30968]
[1736473787657,3.2078,3229.8,3229.7,0.8923]
[1736473788057,3.2078,3230.4,3229.7,0.8923]
[1736473788262,3.2078,3230.4,3229.8,0.4612]
[1736473788464,0.30961,3230.3,3229.8,0.77086]
[1736473788768,3.2078,3230.4,3229.8,0.77086]
[1736473788769,3.51741,3230.4,3229.8,0.4612]
[1736473789169,3.2078,3230.4,3229.8,0.4612]
[1736473789372,3.2078,3230.4,3229.9,0.30965]
[1736473789865,3.5174,3230.4,3229.8,0.4612]
[1736473790070,3.5174,3230.4,3229.8,0.77085]
[1736473790271,3.2078,3230.4,3229.8,0.4612]
[1736473790466,3.76509881,3230.7,3229.8,0.4612]
[1736473790467,0.30958,3230.6,3230.1,0.30962]
[1736473790770,0.30959,3230.5,3230.0,0.30964]
[1736473791667,3.76509881,3230.7,3229.9,3.2078]
[1736473791863,0.30963,3230.2,3229.8,0.4612]
[1736473792169,2.35709881,3230.3,3229.8,0.4612]
[1736473792363,0.30964,3230.1,3229.8,0.4612]
[1736473793167,0.30963,3230.2,3229.8,0.4612]
[1736473793370,2.35709881,3230.3,3229.8,0.4612]
[1736473793571,0.30963,3230.1,3229.8,0.4612]
[1736473793769,2.35709881,3230.3,3229.8,0.77085]
[1736473794077,3.2078,3230.4,3229.8,0.4612]
[1736473794464,0.30962,3230.3,3229.8,0.77086]
[1736473794967,3.51741,3230.4,3229.9,0.30965]
[1736473795165,0.30962,3230.3,3229.8,0.77086]
[1736473796373,0.30962,3230.3,3230.0,0.00156431]
[1736473796767,0.30963,3230.2,3230.0,0.00156431]
[1736473797076,0.30961,3230.3,3230.0,0.00156431]
[1736473797278,3.2078,3230.4,3230.0,0.00156431]
[1736473797573,0.30961,3230.3,3230.0,0.00156431]
[1736473797770,0.30962,3230.2,3230.0,0.00156431]
[1736473799470,0.30963,3230.1,3230.0,0.00156431]
[1736473800678,1.94526388,3230.2,3230.0,0.00156431]
[1736473800977,3.5174,3230.4,3230.0,0.00156431]
[1736473801171,0.30961,3230.3,3230.0,0.00156431]
[1736473801572,3.2078,3230.4,3230.0,0.00156431]
[1736473801766,3.51741,3230.4,3230.0,0.00156431]
[1736473802178,3.2078,3230.4,3230.0,0.00156431]
[1736473802574,3.2078,3230.4,3230.2,0.30962]
[1736473802776,3.2078,3230.8,3230.3,0.882]
[1736473802988,3.2078,3231.2,3230.7,0.30957]
[1736473803287,3.2078,3231.2,3230.8,41.10956]
[1736473803469,3.2078,3231.2,3230.8,0.30956]
[1736473803778,3.2078,3231.2,3230.4,1.94526388]
[1736473803984,3.2078,3231.6,3230.7,5.15306388]
[1736473804179,3.66171388,3232.0,3231.5,0.30949]
[1736473804376,0.30946,3231.9,3231.1,3.2078]
[1736473804574,0.30946,3231.9,3231.3,0.30951]
[1736473804785,1.94526388,3232.0,3231.2,1.3397]
[1736473804969,0.30946,3231.9,3231.4,0.3095]
[1736473805679,0.30947,3231.8,3231.3,0.30951]
[1736473805879,0.30947,3231.8,3231.2,1.3397]
[1736473806080,0.30947,3231.8,3231.2,1.64922]
[1736473806380,0.30947,3231.8,3231.3,0.30951]
[1736473807083,0.30948,3231.7,3231.3,0.30951]
[1736473807488,0.30947,3231.8,3231.3,0.30951]
[1736473808287,0.30948,3231.7,3231.2,1.64922]
[1736473808477,3.75216826,3232.1,3231.2,1.3397]
[1736473808677,0.30948,3231.7,3231.2,1.64922]
[1736473809375,3.75216826,3232.1,3231.2,1.3397]
[1736473809682,0.30951,3231.3,3231.2,1.3397]
[1736473809978,2.35516826,3231.3,3230.6,3.2078]
[1736473810187,0.30955,3231.0,3230.6,3.2078]
[1736473810379,0.30955,3230.9,3230.5,0.30958]
[1736473810977,0.30961,3230.4,3230.2,3.6816]
[1736473811182,0.30961,3230.3,3230.2,3.6816]
[1736473811487,0.30961,3230.3,3230.2,3.2078]
[1736473811686,2.35516826,3230.5,3230.0,0.00156431]
[1736473811687,0.30963,3230.1,3230.0,0.00156431]
[1736473811984,2.71698833,3230.1,3230.0,0.00156431]
[1736473812280,0.30964,3230.0,3229.2,3.2078]
[1736473812479,0.30969,3229.5,3229.2,3.2078]
[1736473813181,3.2078,3229.7,3229.2,3.2078]
[1736473813383,0.3097,3229.4,3229.2,3.2078]
[1736473813586,0.30971,3229.3,3229.2,3.2078]
[1736473813792,0.3097,3229.4,3229.2,3.2078]
[1736473814188,3.2078,3229.7,3229.2,3.2078]
[1736473814481,0.30971,3229.3,3229.2,3.2078]
[1736473814683,0.30968,3229.6,3229.2,3.2078]
[1736473814887,0.3097,3229.4,3229.2,3.2078]
[1736473815783,5.56296826,3229.7,3229.2,3.2078]
[1736473816082,5.87259826,3230.1,3229.5,0.30968]
[1736473816689,0.30965,3229.9,3229.3,0.30971]
[1736473816886,5.87259826,3230.1,3229.5,0.30968]
[1736473817090,5.56296826,3230.1,3229.2,3.2078]
[1736473817287,0.30964,3230.0,3229.3,0.30971]
[1736473817683,0.30966,3229.8,3229.2,3.2078]
[1736473817984,0.30969,3229.5,3229.2,3.2078]
[1736473818384,5.56296826,3229.7,3229.0,40.8]
[1736473818385,0.30971,3229.3,3229.0,40.8]
[1736473818582,1.397,3229.6,3229.0,40.8]
[1736473818783,0.3097,3229.4,3229.0,40.8]
[1736473818988,0.3097,3229.4,3228.8,3.99335]
[1736473819193,0.30971,3229.3,3228.8,3.6836]
[1736473819387,0.30971,3229.3,3228.9,40.8]
[1736473820290,0.3097,3229.4,3228.9,40.8]
[1736473820592,0.30969,3229.5,3228.9,40.8]
[1736473820797,1.397,3229.6,3228.9,40.8]
[1736473821287,3.2078,3229.7,3229.2,3.2078]
[1736473821490,1.397,3230.0,3229.2,3.51751]
[1736473821491,0.30965,3229.9,3229.2,3.51751]
[1736473822193,0.30965,3229.9,3229.2,3.2078]
[1736473822390,0.30965,3229.9,3229.3,0.3097]
[1736473822790,1.70664,3230.0,3229.4,0.3097]
[1736473822990,3.2078,3230.1,3229.2,3.2078]
[1736473823195,3.2078,3230.1,3229.8,0.30965]
[1736473824091,0.3096,3230.4,3229.8,0.30965]
[1736473824295,2.35516826,3230.5,3229.8,0.30965]
[1736473824595,0.30963,3230.1,3229.7,1.3715]
[1736473824800,0.30962,3230.2,3229.7,1.68116]
[1736473824989,0.30962,3230.3,3229.7,1.3715]
[1736473825192,0.30962,3230.3,3229.8,0.30965]
[1736473825394,0.30962,3230.2,3229.7,1.68116]
[1736473825691,2.35516826,3230.5,3229.7,1.3715]
[1736473825891,0.30962,3230.3,3229.8,0.30965]
[1736473826505,3.2078,3230.3,3229.7,0.9348]
[1736473826707,0.30967,3229.7,3229.6,3.2078]
[1736473826895,0.30971,3229.3,3229.1,3.6616]
[1736473827093,2.35516826,3229.7,3228.9,40.8]
[1736473827094,3.2078,3229.4,3228.9,40.8]
[1736473827294,0.30972,3229.2,3228.7,1.18216]
[1736473827703,0.30971,3229.3,3228.9,0.30974]
[1736473827899,3.2078,3229.4,3228.7,41.6724]
[1736473828203,4.6048,3229.9,3229.0,3.2078]
[1736473828399,3.2078,3229.9,3229.6,0.30967]
[1736473828598,3.2078,3229.9,3229.7,0.4743]
[1736473829199,3.2078,3229.9,3229.7,0.78397]
[1736473829701,3.2078,3229.9,3229.7,0.4743]
[1736473830605,3.2078,3229.9,3229.7,0.9286]
[1736473830795,3.51745,3229.9,3229.7,0.9286]
[1736473830999,0.30966,3229.8,3229.7,0.9286]
[1736473831199,3.2078,3229.9,3229.1,0.30972]
[1736473831400,3.2078,3229.9,3229.1,0.9134]
[1736473831601,0.30968,3229.7,3229.2,0.30971]
[1736473831805,0.30968,3229.6,3229.2,0.30971]
[1736473832006,0.30969,3229.5,3229.1,1.22312]
[1736473832300,0.3097,3229.4,3229.1,0.9134]
[1736473833002,0.30969,3229.5,3229.1,1.22312]
[1736473833197,0.30969,3229.5,3229.1,0.9134]
[1736473834306,0.30969,3229.5,3229.1,1.22312]
[1736473834710,0.30969,3229.5,3229.1,0.9134]
[1736473835800,2.35516826,3229.7,3229.1,0.9134]
[1736473836001,0.30972,3229.2,3229.1,0.9134]
[1736473836704,2.35516826,3229.3,3228.7,40.8]
[1736473836899,0.30975,3228.9,3228.7,40.8]
[1736473837104,0.30973,3229.1,3228.7,40.8]
[1736473837307,0.30974,3229.0,3228.7,40.8]
[1736473837507,1.94679466,3229.2,3228.6,3.2078]
[1736473837706,0.30974,3229.0,3228.6,3.2078]
[1736473839306,1.94679466,3229.2,3228.6,3.2078]
[1736473839510,4.5918,3229.5,3229.1,0.30972]
[1736473839705,4.5918,3229.5,3229.2,0.9445]
[1736473840405,1.384,3229.5,3229.2,0.9445]
[1736473841106,3.33079466,3229.5,3229.2,0.9445]
[1736473841307,0.30971,3229.3,3229.2,0.9445]
[1736473841707,0.3097,3229.4,3229.2,0.9445]
[1736473843011,3.64048466,3229.5,3229.2,0.9445]
[1736473843703,1.94679466,3229.8,3229.2,0.9445]
[1736473843908,3.2078,3229.9,3229.2,0.9445]
[1736473844212,0.30966,3229.8,3229.4,0.3097]
[1736473844407,3.2078,3229.9,3229.3,0.4611]
[1736473844608,3.51745,3229.9,3229.5,0.30969]
[1736473844905,3.2078,3229.9,3229.3,0.4611]
[1736473845112,3.2078,3230.3,3229.5,1.94679466]
[1736473845409,1.94679466,3230.5,3230.2,0.30961]
[1736473845610,1.384,3230.6,3230.3,0.893]
[1736473845814,0.30959,3230.5,3230.3,0.893]
[1736473846006,1.384,3230.6,3230.3,0.893]
[1736473846313,0.3096,3230.4,3230.3,0.893]
[1736473846612,1.94679466,3230.5,3230.3,0.4507]
[1736473846808,0.3096,3230.4,3230.3,0.4507]
[1736473847115,0.30962,3230.2,3230.0,40.8]
[1736473847315,3.2078,3230.4,3230.0,40.8]
[1736473847610,0.30963,3230.2,3229.7,0.76166]
[1736473848110,0.30964,3230.1,3229.7,0.76167]
[1736473848415,0.30964,3230.1,3229.8,0.30966]
[1736473848612,3.2078,3230.4,3229.7,0.452]
[1736473848804,0.30962,3230.2,3229.7,0.452]
[1736473849009,0.30962,3230.2,3229.9,0.30965]
[1736473849207,0.30965,3229.9,3229.7,0.452]
[1736473849617,3.2078,3230.0,3229.7,0.452]
[1736473849812,3.2078,3230.0,3229.7,0.76166]
[1736473850014,3.2078,3230.0,3229.7,0.452]
[1736473850412,3.2078,3230.0,3229.9,0.30965]
[1736473850608,3.2078,3230.5,3229.7,0.452]
[1736473850912,5.56536019,3231.3,3230.2,3.2078]
[1736473851115,0.30955,3230.9,3230.6,0.30958]
[1736473851315,5.56536019,3231.3,3230.4,0.9167]
[1736473851618,0.30957,3230.8,3230.5,0.30959]
[1736473852312,0.30956,3230.9,3230.4,0.9167]
[1736473852716,5.56536019,3231.3,3230.4,0.9167]
[1736473853017,0.0521715,3231.2,3230.4,0.9167]
[1736473853219,5.56536019,3231.3,3230.4,0.9167]
[1736473854018,5.56536019,3231.3,3229.9,3.69211]
[1736473854019,5.56536019,3230.9,3230.0,0.30963]
[1736473854221,0.30962,3230.2,3230.0,0.4668]
[1736473854420,5.56536019,3230.5,3230.0,0.4668]
[1736473854715,0.30962,3230.2,3230.0,0.4668]
[1736473855115,0.30962,3230.3,3230.0,0.77644]
[1736473855616,0.30962,3230.2,3230.0,0.4668]
[1736473856213,0.30963,3230.1,3230.0,0.4668]
[1736473856419,5.56536019,3230.5,3230.0,0.4668]
[1736473856627,0.30962,3230.2,3230.0,0.4668]
[1736473857722,0.30963,3230.1,3230.0,0.4668]
[1736473857923,0.30962,3230.2,3230.0,0.4668]
[1736473858720,5.56536019,3230.5,3230.0,0.4668]
[1736473859013,0.30958,3230.6,3230.3,0.30961]
[1736473859726,0.30958,3230.7,3230.4,40.8]
[1736473860113,0.30957,3230.8,3230.4,41.10959]
[1736473860523,5.56536019,3230.9,3230.4,40.8]
[1736473860723,0.30957,3230.7,3230.4,40.8]
[1736473861319,0.30957,3230.8,3230.4,40.8]
[1736473862824,0.30957,3230.7,3230.4,40.8]
[1736473863019,5.56536019,3230.9,3230.2,3.2078]
[1736473863224,0.05217972,3230.8,3230.2,3.2078]
[1736473863419,0.30961,3230.3,3230.2,3.2078]
[1736473865237,0.30956,3230.8,3230.3,0.30961]
[1736473866023,3.2078,3230.9,3230.2,3.2078]
[1736473866424,3.2078,3230.9,3230.3,0.30961]
[1736473866628,3.2078,3230.9,3230.2,3.2078]
[1736473866930,3.2078,3230.9,3230.6,0.30958]
[1736473867127,3.2078,3230.9,3230.7,0.8952]
[1736473867332,3.2078,3230.9,3230.7,1.20477]
[1736473867528,3.51731,3231.4,3230.9,0.30955]
[1736473867734,3.51731,3231.4,3230.7,0.8952]
[1736473867735,0.30952,3231.3,3230.8,0.4791]
[1736473868031,0.30952,3231.3,3230.8,0.78866]
[1736473868231,0.30952,3231.3,3230.8,0.4791]
[1736473868428,3.2078,3231.4,3230.8,0.4791]
[1736473869028,3.51731,3231.4,3230.9,41.10955]
[1736473869231,3.51731,3231.4,3230.9,40.8]
[1736473869433,3.51731,3231.4,3231.0,0.30954]
[1736473869627,3.2078,3231.4,3230.9,40.8]
[1736473869833,0.30952,3231.3,3230.9,41.10955]
[1736473870035,3.2078,3231.4,3230.9,40.8]
[1736473870337,3.51731,3231.4,3231.0,0.30954]
[1736473870730,3.51731,3231.4,3230.9,41.10955]
[1736473871033,3.2078,3231.4,3230.9,40.8]
[1736473871234,0.30956,3230.9,3230.7,0.8952]
[1736473871628,0.30956,3230.8,3230.7,0.8952]
[1736473871937,0.30956,3230.8,3230.7,0.4617]
[1736473872240,3.2078,3231.0,3230.7,0.4617]
[1736473872435,0.30956,3230.9,3230.7,0.4617]
[1736473872632,3.2078,3231.0,3230.7,0.4617]
[1736473872937,0.30956,3230.8,3230.7,0.4617]
[1736473873141,3.2078,3231.0,3230.7,0.4617]
[1736473873536,0.30952,3231.2,3230.8,0.30956]
[1736473874040,0.30952,3231.3,3230.9,0.30955]
[1736473875437,3.2078,3231.4,3231.1,0.30953]
[1736473875641,3.2078,3231.4,3231.3,0.30951]
[1736473876234,0.30947,3231.8,3231.1,0.4455]
[1736473876536,0.30947,3231.8,3231.4,3.5173]
[1736473876735,0.30948,3231.7,3231.4,3.5173]
[1736473876940,0.30948,3231.7,3231.5,0.446]
[1736473877142,1.9444623,3232.1,3231.5,0.446]
[1736473877347,2.35513488,3232.1,3231.5,0.446]
[1736473877638,0.30949,3231.6,3231.5,0.446]
[1736473878433,3.2078,3231.7,3231.2,0.4475]
[1736473878834,0.3095,3231.5,3231.2,0.75702]
[1736473879034,0.30948,3231.7,3231.4,0.3095]
[1736473879345,0.30946,3231.9,3231.6,0.30949]
[1736473879638,5.56293488,3232.1,3231.5,0.473]
[1736473879838,0.30947,3231.8,3231.5,0.473]
[1736473880044,5.56293488,3232.1,3231.5,0.473]
[1736473880240,5.56293488,3232.5,3231.5,0.473]
[1736473880544,0.30941,3232.4,3232.0,0.30944]
[1736473880841,0.30941,3232.4,3232.1,0.9169]
[1736473881040,3.51721,3232.5,3232.1,0.9169]
[1736473881342,0.30942,3232.3,3232.1,0.9169]
[1736473881541,3.2078,3232.5,3232.1,0.9169]
[1736473881937,0.30942,3232.3,3232.1,0.9169]
[1736473882243,0.30944,3232.1,3231.7,0.30948]
[1736473882536,5.56293488,3232.5,3231.8,0.4642]
[1736473882740,0.30943,3232.2,3231.8,0.77366]
[1736473882941,0.30944,3232.1,3231.8,0.4642]
[1736473883138,0.30945,3232.0,3231.8,0.4642]
[1736473883339,5.56293488,3232.5,3231.8,0.4642]
[1736473883742,0.30945,3232.0,3231.4,3.2078]
[1736473884045,2.35513488,3231.7,3231.3,0.8956]
[1736473884242,0.3095,3231.4,3231.3,0.8956]
[1736473884543,0.30947,3231.8,3231.4,0.3095]
[1736473884843,3.2078,3231.9,3231.4,0.432]
[1736473884844,0.30949,3231.6,3231.4,0.432]
[1736473885044,3.2078,3231.9,3231.4,0.432]
[1736473885235,0.30948,3231.7,3231.4,0.432]
[1736473886340,0.30947,3231.8,3231.4,0.432]
[1736473886947,0.30948,3231.7,3231.4,0.432]
[1736473889246,2.35513488,3232.2,3231.4,0.432]
[1736473889449,0.30944,3232.1,3231.4,3.6398]
[1736473889649,0.30946,3231.9,3231.5,0.3095]
[1736473890143,0.30947,3231.8,3231.4,3.6398]
[1736473890347,0.30947,3231.8,3231.4,0.432]
[1736473890747,3.72913488,3232.2,3231.4,0.432]
[1736473890943,0.30944,3232.1,3231.6,0.30948]
[1736473891151,0.30944,3232.1,3231.7,0.30947]
[1736473891354,0.30946,3232.0,3231.5,0.3095]
[1736473892353,0.30946,3231.9,3231.5,0.3095]
[1736473892949,0.30947,3231.8,3231.4,0.432]
[1736473893142,0.30947,3231.8,3231.4,0.7415]
[1736473893344,0.30948,3231.7,3231.4,0.432]
[1736473893556,3.72913488,3232.2,3231.4,0.432]
[1736473893744,0.05215685,3232.1,3231.4,0.432]
[1736473894048,0.3095,3231.5,3231.4,0.432]
[1736473894249,3.2078,3231.9,3231.4,0.432]
[1736473894442,0.30949,3231.6,3231.4,0.432]
[1736473894752,0.3095,3231.5,3231.4,0.432]
[1736473894949,2.35513488,3231.8,3231.0,3.2078]
[1736473895255,0.30953,3231.2,3231.0,3.2078]
[1736473896653,3.2078,3231.5,3231.0,3.2078]
[1736473896850,0.30952,3231.3,3231.0,3.2078]
[1736473897358,3.5173,3231.5,3231.0,3.51733]
[1736473897653,0.30951,3231.4,3231.0,3.51733]
[1736473897952,3.2078,3231.5,3231.0,3.2078]
[1736473898151,0.30953,3231.2,3231.0,3.2078]
[1736473899356,0.30955,3230.9,3230.5,0.4372]
[1736473899852,0.30956,3230.8,3230.6,40.8]
[1736473900048,5.15250209,3231.1,3230.6,40.8]
[1736473900251,0.30958,3230.6,3230.5,0.4372]
[1736473900647,5.15250209,3231.1,3230.5,0.4372]
[1736473900847,0.30957,3230.8,3230.5,41.2372]
[1736473901046,3.2078,3231.1,3230.8,0.30956]
[1736473901446,0.4506,3231.6,3230.9,0.4457]
[1736473901647,5.46198209,3231.7,3231.3,0.30951]
[1736473901846,3.2078,3231.7,3230.9,2.39040209]
[1736473902053,3.2078,3231.7,3231.5,0.30949]
[1736473902248,3.2078,3231.7,3231.6,1.3675]
[1736473902756,1.67546,3231.9,3231.6,1.3675]
[1736473903053,5.15250209,3232.6,3231.6,42.1675]
[1736473903259,3.2078,3232.6,3232.3,0.30941]
[1736473903447,1.94470209,3232.9,3232.3,0.30941]
[1736473903647,0.30939,3232.7,3232.4,0.9206]
[1736473903852,1.94470209,3232.9,3232.4,0.9206]
[1736473904159,0.30938,3232.8,3232.4,0.9206]
[1736473904355,1.94470209,3232.9,3232.4,0.9206]
[1736473904553,1.94470209,3232.9,3232.5,0.30939]
[1736473904750,3.2078,3233.0,3232.6,0.30938]
[1736473904954,3.2078,3233.0,3232.9,0.30936]
[1736473905267,1.365,3233.3,3232.6,3.2078]
[1736473905458,0.30935,3233.1,3232.6,3.51718]
[1736473905654,1.94470209,3233.2,3232.6,3.2078]
[1736473905956,0.30936,3233.0,3232.6,3.51719]
[1736473906356,1.94470209,3233.2,3232.6,3.2078]
[1736473906855,0.30933,3233.3,3232.9,0.30936]
[1736473907060,3.2078,3233.6,3233.2,0.30933]
[1736473907253,3.2078,3233.6,3232.6,3.2078]
[1736473907254,0.30931,3233.5,3233.3,0.4451]
[1736473907558,3.2078,3233.6,3233.3,0.4451]
[1736473907759,3.5171,3233.6,3233.3,0.4451]
[1736473908166,0.30931,3233.5,3233.3,0.4451]
[1736473908551,0.30931,3233.4,3233.3,0.4451]
[1736473908962,0.30931,3233.5,3233.3,0.4451]
[1736473909163,3.2078,3233.6,3233.3,0.4451]
[1736473909366,0.30929,3233.7,3233.3,0.4451]
[1736473909661,0.3093,3233.5,3233.3,41.2451]
[1736473910058,0.30927,3233.9,3233.3,41.2451]
[1736473910260,0.30929,3233.7,3233.3,41.2451]
[1736473910460,0.30929,3233.7,3233.3,41.684]
[1736473910852,3.71750883,3234.0,3233.3,0.884]
[1736473910853,3.2078,3233.6,3233.3,0.884]
[1736473911057,6.92530883,3234.0,3233.3,0.884]
[1736473911257,0.3093,3233.6,3233.3,0.884]
[1736473912060,6.92530883,3234.0,3233.3,0.884]
[1736473912267,0.30929,3233.7,3233.3,0.884]
[1736473913063,6.92530883,3234.0,3233.3,0.884]
[1736473913253,0.05212528,3233.9,3233.3,0.884]
[1736473913461,0.30927,3233.9,3233.3,1.19332]
[1736473913656,6.92530883,3234.0,3233.3,1.19332]
[1736473913863,3.2078,3234.0,3233.3,0.884]
[1736473914062,3.2078,3234.0,3233.5,0.3093]
[1736473914460,3.51706,3234.0,3233.4,40.8]
[1736473914667,3.2078,3234.0,3233.4,40.8]
[1736473914864,0.30927,3233.9,3233.3,1.19332]
[1736473916265,0.30927,3233.9,3233.4,0.30931]
[1736473916665,0.30928,3233.8,3233.3,1.19332]
[1736473917064,3.2078,3234.0,3233.3,0.884]
[1736473917266,0.30927,3233.9,3233.4,0.30931]
[1736473918568,0.30928,3233.8,3233.4,0.30931]
[1736473918771,0.3093,3233.6,3233.3,0.884]
[1736473918971,5.56030883,3234.0,3233.3,0.884]
[1736473919262,0.3093,3233.6,3233.3,0.884]
[1736473919868,5.56030883,3234.0,3233.3,0.884]
[1736473920071,0.30928,3233.8,3233.4,0.30931]
[1736473920371,5.56030883,3234.0,3233.3,0.884]
[1736473920372,5.56030883,3234.0,3233.3,1.19332]
[1736473920570,0.3093,3233.6,3233.3,1.19332]
[1736473921863,5.56030883,3234.0,3233.3,0.884]
[1736473922266,0.30929,3233.7,3233.4,0.30931]
[1736473922570,0.30929,3233.7,3233.3,0.884]
[1736473922571,0.30928,3233.8,3233.5,0.3093]
[1736473923871,0.4342,3234.2,3233.4,3.2078]
[1736473924071,0.30925,3234.1,3233.4,3.2078]
[1736473924275,0.30925,3234.1,3233.7,0.30928]
[1736473924961,0.30925,3234.1,3233.5,0.3093]
[1736473925170,3.2078,3234.4,3233.4,3.2078]
[1736473925371,0.30925,3234.1,3233.7,0.30928]